fUSD/lending_fUSD_20240422
["ID","MTS","AMOUNT","RATE_DAILY","PERIOD"]
[323194691,1713797479816,-500.0,0.0001452,2]
[323194692,1713797479833,-640.02,0.0001452,2]
[323194693,1713797479849,-500.0,0.0001452,2]
[323194694,1713797479863,-1575.47,0.0001452,2]
[323194695,1713797479877,-500.0,0.0001452,2]
[323194696,1713797479892,-500.0,0.0001452,2]
[323194697,1713797479907,-500.0,0.0001452,2]
[323194698,1713797479922,-782.61,0.0001452,2]
[323194699,1713797479937,-597.23,0.0001452,2]
[323194700,1713797479951,-500.0,0.0001452,2]
[323194701,1713797479966,-1604.23,0.0001452,2]
[323194702,1713797479981,-500.0,0.0001452,2]
[323194703,1713797479996,-1831.23,0.0001452,2]
[323194704,1713797480010,-500.0,0.0001452,2]
[323194705,1713797480026,-748.37,0.0001452,2]
[323194706,1713797480041,-1636.88,0.0001452,2]
[323194707,1713797480057,-500.0,0.0001452,2]
[323194708,1713797480073,-1031.64,0.0001452,2]
[323194709,1713797480088,-500.0,0.0001452,2]
[323194710,1713797480103,-500.0,0.0001452,2]
[323194711,1713797480119,-500.0,0.0001452,2]
[323194712,1713797480134,-500.0,0.0001452,2]
[323194713,1713797480149,-500.0,0.0001452,2]
[323194714,1713797480164,-1858.27,0.0001452,2]
[323194715,1713797480179,-898.65,0.0001452,2]
[323194716,1713797480195,-4755.82,0.0001452,2]
[323194717,1713797480210,-500.0,0.0001452,2]
[323194718,1713797480225,-500.0,0.0001452,2]
[323194719,1713797480241,-634.45,0.0001452,2]
[323194720,1713797480255,-772.96,0.0001452,2]
[323194721,1713797480270,-619.83,0.0001452,2]
[323194722,1713797480284,-500.0,0.0001452,2]
[323194723,1713797480299,-500.0,0.0001452,2]
[323194724,1713797480314,-500.0,0.0001452,2]
[323194725,1713797480331,-1549.38,0.0001452,2]
[323194726,1713797480347,-500.0,0.0001452,2]
[323194727,1713797480363,-500.0,0.0001452,2]
[323194728,1713797480379,-500.0,0.0001452,2]
[323194729,1713797480396,-586.35,0.0001452,2]
[323194730,1713797480411,-930.43,0.0001452,2]
[323194731,1713797480427,-2874.27,0.0001452,2]
[323194733,1713797480443,-500.0,0.0001452,2]
[323194734,1713797480460,-678.71,0.0001452,2]
[323194735,1713797480475,-500.0,0.0001452,2]
[323194736,1713797480491,-1083.59,0.0001452,2]
[323194737,1713797480506,-831.82,0.0001452,2]
[323194738,1713797480521,-500.0,0.0001452,2]
[323194739,1713797480537,-500.0,0.0001452,2]
[323194740,1713797480552,-500.0,0.0001452,2]
[323194741,1713797480568,-798.25,0.0001452,2]
[323194742,1713797480584,-662.31,0.0001452,2]
[323194743,1713797480601,-1968.11,0.0001452,2]
[323194744,1713797480616,-500.0,0.0001452,2]
[323194745,1713797480631,-1767.94,0.0001452,2]
[323194746,1713797480648,-597.5,0.0001452,2]
[323194747,1713797480662,-1909.23,0.0001452,2]
[323194748,1713797480678,-500.0,0.0001452,2]
[323194749,1713797480694,-710.03,0.0001452,2]
[323194750,1713797480708,-753.14,0.0001452,2]
[323194751,1713797480723,-500.0,0.0001452,2]
[323194752,1713797480738,-500.0,0.0001452,2]
[323194753,1713797480752,-1427.68,0.0001452,2]
[323194754,1713797480767,-500.0,0.0001452,2]
[323194755,1713797480781,-630.8,0.0001452,2]
[323194756,1713797480796,-2018.57,0.0001452,2]
[323194757,1713797480811,-500.0,0.0001452,2]
[323194758,1713797480827,-835.81,0.0001452,2]
[323194759,1713797480841,-500.0,0.0001452,2]
[323194760,1713797480856,-500.0,0.0001452,2]
[323194761,1713797480870,-735.14,0.0001452,2]
[323194762,1713797480884,-751.95,0.0001452,2]
[323194763,1713797480899,-2283.48,0.0001452,2]
[323194764,1713797480913,-868.84,0.0001452,2]
[323194765,1713797480927,-775.71,0.0001452,2]
[323194766,1713797480943,-500.0,0.0001452,2]
[323194767,1713797480957,-500.0,0.0001452,2]
[323194768,1713797480971,-1175.08,0.0001452,2]
[323194769,1713797480985,-711.05,0.0001452,2]
[323194770,1713797480998,-4078.28,0.0001452,2]
[323194771,1713797481013,-500.0,0.0001452,2]
[323194772,1713797481028,-1766.64,0.0001452,2]
[323194773,1713797481043,-727.32,0.0001452,2]
[323194774,1713797481057,-500.0,0.0001452,2]
[323194775,1713797481066,-500.0,0.0001452,2]
[323194776,1713797481078,-500.0,0.0001452,2]
[323194777,1713797481087,-545.64,0.0001452,2]
[323194778,1713797481097,-770.88,0.0001452,2]
[323194779,1713797481106,-500.0,0.0001452,2]
[323194780,1713797481116,-566.54,0.0001452,2]
[323194781,1713797481126,-2213.29,0.0001452,2]
[323194782,1713797481136,-500.0,0.0001452,2]
[323194783,1713797481146,-1806.26,0.0001452,2]
[323194784,1713797481156,-500.0,0.0001452,2]
[323194785,1713797481165,-500.0,0.0001452,2]
[323194786,1713797481174,-514.67,0.0001452,2]
[323194787,1713797481184,-954.95,0.0001452,2]
[323194788,1713797481194,-1514.0,0.0001452,2]
[323194789,1713797481204,-500.0,0.0001452,2]
[323194790,1713797481214,-500.0,0.0001452,2]
[323194791,1713797481224,-500.0,0.0001452,2]
[323194792,1713797481234,-500.0,0.0001452,2]
[323194793,1713797481244,-2643.99,0.0001452,2]
[323194794,1713797481253,-652.18,0.0001452,2]
[323194795,1713797481263,-500.0,0.0001452,2]
[323194796,1713797481274,-500.0,0.0001452,2]
[323194797,1713797481284,-1023.82,0.0001452,2]
[323194798,1713797481294,-500.0,0.0001452,2]
[323194799,1713797481303,-1778.99,0.0001452,2]
[323194800,1713797481313,-500.0,0.0001452,2]
[323194801,1713797481325,-1372.48,0.0001452,2]
[323194802,1713797481335,-2340.41,0.0001452,2]
[323194803,1713797481345,-553.45,0.0001452,2]
[323194804,1713797481355,-500.0,0.0001452,2]
[323194805,1713797481365,-1069.65,0.0001452,2]
[323194806,1713797481375,-1348.77,0.0001452,2]
[323194807,1713797481384,-500.0,0.0001452,2]
[323194808,1713797481394,-1083.12,0.0001452,2]
[323194809,1713797481403,-500.15,0.0001452,2]
[323194810,1713797481414,-709.52,0.0001452,2]
[323194811,1713797481424,-500.0,0.0001452,2]
[323194812,1713797481433,-500.0,0.0001452,2]
[323194813,1713797481442,-826.29,0.0001452,2]
[323194814,1713797481453,-531.28,0.0001452,2]
[323194815,1713797481462,-1106.5,0.0001452,2]
[323194816,1713797481472,-500.0,0.0001452,2]
[323194817,1713797481481,-4246.76,0.0001452,2]
[323194818,1713797481491,-500.0,0.0001452,2]
[323194819,1713797481501,-500.0,0.0001452,2]
[323194820,1713797481511,-1751.5,0.0001452,2]
[323194821,1713797481520,-612.07,0.0001452,2]
[323194822,1713797481531,-500.0,0.0001452,2]
[323194823,1713797481541,-240.06490498,0.0001452,2]
[323194824,1713797481551,-500.0,0.0001452,2]
[323194825,1713797481560,-500.0,0.0001452,2]
[323194826,1713797481571,-500.0,0.0001452,2]
[323194827,1713797481585,-500.0,0.0001452,2]
[323194828,1713797481595,-870.5,0.0001452,2]
[323194829,1713797481993,-1667.86,0.0001452,2]
[323194830,1713797482207,-500.0,0.0001452,2]
[323194831,1713797482237,-600.51,0.0001452,2]
[323194832,1713797482261,-500.0,0.0001452,2]
[323194833,1713797482275,-500.0,0.0001452,2]
[323194834,1713797482285,-500.0,0.0001452,2]
[323194835,1713797482295,-500.0,0.0001452,2]
[323194836,1713797482304,-500.0,0.0001452,2]
[323194837,1713797482314,-500.0,0.0001452,2]
[323194838,1713797482326,-3064.76,0.0001452,2]
[323194839,1713797482335,-774.13,0.0001452,2]
[323194840,1713797482344,-2274.23,0.0001452,2]
[323194841,1713797482354,-951.54,0.0001452,2]
[323194842,1713797482364,-500.0,0.0001452,2]
[323194843,1713797482373,-575.84,0.0001452,2]
[323194844,1713797482383,-500.0,0.0001452,2]
[323194845,1713797482392,-1103.5,0.0001452,2]
[323194846,1713797482402,-545.9,0.0001452,2]
[323194847,1713797482412,-500.0,0.0001452,2]
[323194848,1713797482421,-532.9,0.0001452,2]
[323194849,1713797482431,-890.6,0.0001452,2]
[323194850,1713797482441,-2363.25,0.0001452,2]
[323194851,1713797482451,-1138.62,0.0001452,2]
[323194852,1713797482461,-779.52,0.0001452,2]
[323194853,1713797482470,-630.94,0.0001452,2]
[323194854,1713797482479,-500.0,0.0001452,2]
[323194855,1713797482488,-500.0,0.0001452,2]
[323194856,1713797482498,-500.0,0.0001452,2]
[323194857,1713797482507,-500.0,0.0001452,2]
[323194858,1713797482517,-5475.8,0.0001452,2]
[323194859,1713797482527,-500.0,0.0001452,2]
[323194860,1713797482536,-902.47,0.0001452,2]
[323194861,1713797482546,-1969.65,0.0001452,2]
[323194862,1713797482555,-500.0,0.0001452,2]
[323194863,1713797482564,-757.26,0.0001452,2]
[323194864,1713797482575,-2831.92,0.0001452,2]
[323194865,1713797482585,-955.57,0.0001452,2]
[323194866,1713797482596,-738.18,0.0001452,2]
[323194867,1713797482606,-532.11,0.0001452,2]
[323194868,1713797482616,-500.0,0.0001452,2]
[323194869,1713797482625,-500.0,0.0001452,2]
[323194870,1713797482635,-500.0,0.0001452,2]
[323194871,1713797482646,-500.0,0.0001452,2]
[323194872,1713797482655,-4698.45,0.0001452,2]
[323194873,1713797482665,-2077.11,0.0001452,2]
[323194874,1713797482675,-771.72,0.0001452,2]
[323194875,1713797482685,-500.0,0.0001452,2]
[323194876,1713797482694,-1149.61,0.0001452,2]
[323194877,1713797482704,-592.9687139,0.0001452,2]
[323194878,1713797482713,-969.06,0.0001452,2]
[323194879,1713797482723,-500.0,0.0001452,2]
[323194880,1713797482733,-712.0,0.0001452,2]
[323194881,1713797482743,-3207.73,0.0001452,2]
[323194882,1713797482753,-1369.62,0.0001452,2]
[323194883,1713797482764,-2308.67,0.0001452,2]
[323194884,1713797482774,-500.0,0.0001452,2]
[323194885,1713797482783,-1819.53,0.0001452,2]
[323194886,1713797482793,-5208.32,0.0001452,2]
[323194887,1713797482803,-655.71,0.0001452,2]
[323194888,1713797482813,-1414.2,0.0001452,2]
[323194889,1713797482824,-2936.96,0.0001452,2]
[323194890,1713797482835,-2067.8,0.0001452,2]
[323194891,1713797482845,-500.0,0.0001452,2]
[323194892,1713797482856,-69179.36,0.0001452,2]
[323194893,1713797482866,-500.0,0.0001452,2]
[323194894,1713797482875,-500.0,0.0001452,2]
[323194895,1713797482884,-811.57,0.0001452,2]
[323194896,1713797482894,-500.0,0.0001452,2]
[323194897,1713797482904,-500.0,0.0001452,2]
[323194898,1713797482914,-500.0,0.0001452,2]
[323194899,1713797482924,-1603.89,0.0001452,2]
[323194900,1713797482934,-1787.37,0.0001452,2]
[323194901,1713797482944,-952.4,0.0001452,2]
[323194902,1713797482954,-686.32,0.0001452,2]
[323194903,1713797482963,-5373.75,0.0001452,2]
[323194904,1713797482973,-905.67,0.0001452,2]
[323194905,1713797482982,-500.0,0.0001452,2]
[323194906,1713797482992,-6921.97,0.0001452,2]
[323194907,1713797483002,-628.49,0.0001452,2]
[323194908,1713797483012,-1983.07,0.0001452,2]
[323194909,1713797483022,-518.83,0.0001452,2]
[323194910,1713797483032,-10845.59,0.0001452,2]
[323194911,1713797483041,-3656.94,0.0001452,2]
[323194912,1713797483051,-500.0,0.0001452,2]
[323194913,1713797483060,-515.26,0.0001452,2]
[323194914,1713797483071,-500.0,0.0001452,2]
[323194915,1713797483080,-500.0,0.0001452,2]
[323194916,1713797483088,-500.0,0.0001452,2]
[323194917,1713797483098,-5769.73,0.0001452,2]
[323194918,1713797483107,-500.0,0.0001452,2]
[323194919,1713797483118,-1345.69,0.0001452,2]
[323194920,1713797483127,-1704.44,0.0001452,2]
[323194921,1713797483137,-5597.29,0.0001452,2]
[323194922,1713797483146,-2331.63,0.0001452,2]
[323194923,1713797483156,-843.0,0.0001452,2]
[323194924,1713797483165,-659.35,0.0001452,2]
[323194925,1713797483175,-500.0,0.0001452,2]
[323194926,1713797483184,-500.0,0.0001452,2]
[323194927,1713797483193,-5196.97,0.0001452,2]
[323194928,1713797483203,-661.43,0.0001452,2]
[323194929,1713797483212,-2206.69,0.0001452,2]
[323194930,1713797483222,-500.0,0.0001452,2]
[323194931,1713797483232,-1484.46,0.0001452,2]
[323194932,1713797483242,-5463.52,0.0001452,2]
[323194933,1713797483253,-2091.4,0.0001452,2]
[323194934,1713797483262,-10383.69,0.0001452,2]
[323194935,1713797483271,-1380.04,0.0001452,2]
[323194936,1713797483280,-1474.61,0.0001452,2]
[323194937,1713797483289,-5275.76,0.0001452,2]
[323194938,1713797483299,-9323.5,0.0001452,2]
[323194939,1713797483308,-327.411617,0.0001452,2]
[323194940,1713797483317,-500.0,0.0001452,2]
[323194941,1713797483328,-500.0,0.0001452,2]
[323194942,1713797483337,-2347.11,0.0001452,2]
[323194943,1713797483347,-1047.22,0.0001452,2]
[323194944,1713797483357,-500.0,0.0001452,2]
[323194945,1713797483366,-3549.56,0.0001452,2]
[323194946,1713797483376,-584.96,0.0001452,2]
[323194947,1713797483385,-500.0,0.0001452,2]
[323194948,1713797483394,-890.51,0.0001452,2]
[323194949,1713797483404,-519.93440877,0.0001452,2]
[323194950,1713797483413,-1550.13,0.0001452,2]
[323194951,1713797483423,-527.08,0.0001452,2]
[323194952,1713797483433,-3055.38,0.0001452,2]
[323194953,1713797483443,-729.2,0.0001452,2]
[323194954,1713797483453,-7007.74,0.0001452,2]
[323194955,1713797483462,-2244.29,0.0001452,2]
[323194956,1713797483472,-1728.24,0.0001452,2]
[323194957,1713797483482,-500.0,0.0001452,2]
[323194958,1713797483491,-747.6,0.0001452,2]
[323194959,1713797483500,-500.0,0.0001452,2]
[323194960,1713797483510,-500.0,0.0001452,2]
[323194961,1713797483520,-3390.77,0.0001452,2]
[323194962,1713797483529,-1168.79,0.0001452,2]
[323194963,1713797483539,-1925.74,0.0001452,2]
[323194964,1713797483549,-500.0,0.0001452,2]
[323194965,1713797483558,-784.66,0.0001452,2]
[323194966,1713797483568,-10994.45,0.0001452,2]
[323194967,1713797483583,-34637.6,0.0001452,2]
[323194968,1713797483592,-12295.13,0.0001452,2]
[323194969,1713797483602,-516.71,0.0001452,2]
[323194970,1713797483612,-679.03,0.0001452,2]
[323194971,1713797483622,-500.0,0.0001452,2]
[323194972,1713797483632,-897.24,0.0001452,2]
[323194973,1713797483642,-820.66,0.0001452,2]
[323194974,1713797483652,-500.0,0.0001452,2]
[323194975,1713797483661,-6065.67,0.0001452,2]
[323194976,1713797483671,-500.0,0.0001452,2]
[323194977,1713797483680,-667.8,0.0001452,2]
[323194978,1713797483690,-500.0,0.0001452,2]
[323194979,1713797483699,-545.75,0.0001452,2]
[323194980,1713797483708,-2731.54,0.0001452,2]
[323194981,1713797483718,-500.0,0.0001452,2]
[323194982,1713797483727,-1194.7,0.0001452,2]
[323194983,1713797483736,-2860.73,0.0001452,2]
[323194984,1713797483746,-500.0,0.0001452,2]
[323194985,1713797483755,-500.0,0.0001452,2]
[323194986,1713797483764,-1803.55,0.0001452,2]
[323194987,1713797483774,-830.47,0.0001452,2]
[323194988,1713797483784,-500.0,0.0001452,2]
[323194989,1713797483793,-64780.77,0.0001452,2]
[323194990,1713797483803,-2104.78,0.0001452,2]
[323194991,1713797483812,-5651.1,0.0001452,2]
[323194992,1713797483822,-79675.89,0.0001452,2]
[323194993,1713797483832,-616.90100507,0.0001452,2]
[323194994,1713797483841,-500.0,0.0001452,2]
[323194995,1713797483850,-500.0,0.0001452,2]
[323194996,1713797483859,-500.0,0.0001452,2]
[323194997,1713797483869,-500.0,0.0001452,2]
[323194998,1713797483879,-500.0,0.0001452,2]
[323194999,1713797483888,-658.09,0.0001452,2]
[323195000,1713797483897,-2020.93,0.0001452,2]
[323195001,1713797483907,-500.0,0.0001452,2]
[323195002,1713797483916,-1807.6,0.0001452,2]
[323195003,1713797483926,-500.0,0.0001452,2]
[323195004,1713797483935,-736.9,0.0001452,2]
[323195005,1713797483945,-764.39,0.0001452,2]
[323195006,1713797483954,-6354.44,0.0001452,2]
[323195007,1713797483963,-500.0,0.0001452,2]
[323195008,1713797483973,-1658.98,0.0001452,2]
[323195009,1713797483982,-708.16,0.0001452,2]
[323195010,1713797483990,-3844.78,0.0001452,2]
[323195011,1713797484000,-917.07,0.0001452,2]
[323195012,1713797484009,-615.31,0.0001452,2]
[323195013,1713797484018,-3079.34,0.0001452,2]
[323195014,1713797484028,-500.0,0.0001452,2]
[323195015,1713797484037,-500.0,0.0001452,2]
[323195016,1713797484047,-500.0,0.0001452,2]
[323195017,1713797484056,-2305.84,0.0001452,2]
[323195018,1713797484066,-3070.14,0.0001452,2]
[323195019,1713797484076,-1019.32,0.0001452,2]
[323195020,1713797484086,-272.87930891,0.0001452,2]
[323195021,1713797484095,-988.29,0.0001452,2]
[323195022,1713797484104,-4505.91,0.0001452,2]
[323195023,1713797484113,-986.78,0.0001452,2]
[323195024,1713797484122,-611.51,0.0001452,2]
[323195025,1713797484132,-6183.11,0.0001452,2]
[323195026,1713797484141,-500.0,0.0001452,2]
[323195027,1713797484151,-500.0,0.0001452,2]
[323195028,1713797484160,-500.0,0.0001452,2]
[323195029,1713797484169,-500.0,0.0001452,2]
[323195030,1713797484179,-11533.71,0.0001452,2]
[323195031,1713797484188,-1145.7,0.0001452,2]
[323195032,1713797484197,-1641.84,0.0001452,2]
[323195033,1713797484206,-500.0,0.0001452,2]
[323195034,1713797484215,-500.0,0.0001452,2]
[323195035,1713797484225,-500.0,0.0001452,2]
[323195036,1713797484234,-1159.21,0.0001452,2]
[323195037,1713797484244,-1325.3,0.0001452,2]
[323195038,1713797484253,-500.0,0.0001452,2]
[323195039,1713797484262,-500.0,0.0001452,2]
[323195040,1713797484272,-1164.27,0.0001452,2]
[323195041,1713797484282,-14377.72,0.0001452,2]
[323195042,1713797484291,-4822.32,0.0001452,2]
[323195043,1713797484301,-6053.6,0.0001452,2]
[323195044,1713797484310,-11251.61,0.0001452,2]
[323195045,1713797484319,-951.27,0.0001452,2]
[323195046,1713797484329,-1233.77,0.0001452,2]
[323195047,1713797484338,-32709.43,0.0001452,2]
[323195048,1713797484348,-1562.31,0.0001452,2]
[323195049,1713797484357,-500.0,0.0001452,2]
[323195050,1713797484366,-500.0,0.0001452,2]
[323195051,1713797484376,-1086.39,0.0001452,2]
[323195052,1713797484385,-500.0,0.0001452,2]
[323195053,1713797484394,-5943.65,0.0001452,2]
[323195054,1713797484404,-1338.67,0.0001452,2]
[323195055,1713797484413,-4887.97,0.0001452,2]
[323195056,1713797484422,-1780.6,0.0001452,2]
[323195057,1713797484432,-1090.31,0.0001452,2]
[323195058,1713797484442,-867.74,0.0001452,2]
[323195059,1713797484451,-4768.44,0.0001452,2]
[323195060,1713797484461,-813.01,0.0001452,2]
[323195061,1713797484470,-7790.44,0.0001452,2]
[323195062,1713797484480,-1221.45,0.0001452,2]
[323195063,1713797484490,-1937.81,0.0001452,2]
[323195064,1713797484499,-2727.88,0.0001452,2]
[323195065,1713797484509,-46764.76,0.0001452,2]
[323195066,1713797484518,-500.0,0.0001452,2]
[323195067,1713797484528,-8189.99,0.0001452,2]
[323195068,1713797484537,-2865.01,0.0001452,2]
[323195069,1713797484547,-549.58,0.0001452,2]
[323195070,1713797484558,-514.2,0.0001452,2]
[323195071,1713797484567,-1456.95,0.0001452,2]
[323195072,1713797484581,-500.0,0.0001452,2]
[323195073,1713797484591,-7127.21,0.0001452,2]
[323195074,1713797484601,-500.0,0.0001452,2]
[323195075,1713797484610,-500.0,0.0001452,2]
[323195076,1713797484622,-3215.57,0.0001452,2]
[323195077,1713797484631,-1438.96,0.0001452,2]
[323195078,1713797484640,-8203.4,0.0001452,2]
[323195079,1713797484650,-2563.41,0.0001452,2]
[323195080,1713797484660,-500.0,0.0001452,2]
[323195081,1713797484670,-1067.05,0.0001452,2]
[323195082,1713797484679,-1220.07,0.0001452,2]
[323195083,1713797484689,-673.67,0.0001452,2]
[323195084,1713797484698,-2801.0,0.0001452,2]
[323195085,1713797484708,-4371.4,0.0001452,2]
[323195086,1713797484718,-844.72,0.0001452,2]
[323195087,1713797484728,-7232.17,0.0001452,2]
[323195088,1713797484737,-500.0,0.0001452,2]
[323195089,1713797484747,-500.0,0.0001452,2]
[323195090,1713797484757,-500.0,0.0001452,2]
[323195091,1713797484767,-1935.55,0.0001452,2]
[323195092,1713797484777,-6999.61,0.0001452,2]
[323195093,1713797484786,-556.01,0.0001452,2]
[323195094,1713797484796,-14864.94,0.0001452,2]
[323195095,1713797484805,-979.3,0.0001452,2]
[323195096,1713797484815,-10066.49,0.0001452,2]
[323195097,1713797484829,-505.4,0.0001452,2]
[323195098,1713797484838,-3496.47,0.0001452,2]
[323195099,1713797484848,-1521.83,0.0001452,2]
[323195100,1713797484857,-500.0,0.0001452,2]
[323195101,1713797484866,-1524.33,0.0001452,2]
[323195102,1713797484877,-2158.9,0.0001452,2]
[323195103,1713797484886,-2346.41,0.0001452,2]
[323195104,1713797484895,-500.0,0.0001452,2]
[323195105,1713797484905,-500.0,0.0001452,2]
[323195106,1713797484914,-500.0,0.0001452,2]
[323195107,1713797484924,-5254.57,0.0001452,2]
[323195108,1713797484933,-500.0,0.0001452,2]
[323195109,1713797484943,-2027.35,0.0001452,2]
[323195110,1713797484952,-500.0,0.0001452,2]
[323195111,1713797484961,-13479.64,0.0001452,2]
[323195112,1713797484971,-500.0,0.0001452,2]
[323195113,1713797484980,-4866.68,0.0001452,2]
[323195114,1713797484989,-1885.97,0.0001452,2]
[323195115,1713797484998,-2749.09,0.0001452,2]
[323195116,1713797485008,-2633.93,0.0001452,2]
[323195117,1713797485017,-625.34,0.0001452,2]
[323195118,1713797485026,-5300.49,0.0001452,2]
[323195119,1713797485035,-500.0,0.0001452,2]
[323195120,1713797485045,-500.0,0.0001452,2]
[323195121,1713797485055,-5260.34,0.0001452,2]
[323195122,1713797485064,-1044.08,0.0001452,2]
[323195123,1713797485076,-1540.55,0.0001452,2]
[323195124,1713797485086,-4252.28,0.0001452,2]
[323195125,1713797485095,-894.47,0.0001452,2]
[323195126,1713797485105,-500.0,0.0001452,2]
[323195127,1713797485115,-500.0,0.0001452,2]
[323195128,1713797485125,-500.0,0.0001452,2]
[323195129,1713797485134,-504.1,0.0001452,2]
[323195130,1713797485144,-500.0,0.0001452,2]
[323195131,1713797485154,-1813.46,0.0001452,2]
[323195132,1713797485164,-2213.32,0.0001452,2]
[323195133,1713797485173,-596.13,0.0001452,2]
[323195134,1713797485184,-839.93,0.0001452,2]
[323195135,1713797485193,-1002.67,0.0001452,2]
[323195136,1713797485203,-9486.21,0.0001452,2]
[323195137,1713797485213,-1037.9,0.0001452,2]
[323195138,1713797485223,-4761.65,0.0001452,2]
[323195139,1713797485233,-1348.75,0.0001452,2]
[323195140,1713797485243,-4693.38,0.0001452,2]
[323195141,1713797485252,-500.0,0.0001452,2]
[323195142,1713797485263,-1110.47,0.0001452,2]
[323195143,1713797485273,-500.0,0.0001452,2]
[323195144,1713797485283,-500.0,0.0001452,2]
[323195145,1713797485293,-2003.35,0.0001452,2]
[323195146,1713797485303,-4012.83,0.0001452,2]
[323195147,1713797485313,-1178.6,0.0001452,2]
[323195148,1713797485325,-6308.19,0.0001452,2]
[323195149,1713797485335,-11121.19,0.0001452,2]
[323195150,1713797485345,-13403.19,0.0001452,2]
[323195151,1713797485354,-7567.9,0.0001452,2]
[323195152,1713797485364,-2249.41,0.0001452,2]
[323195153,1713797485373,-500.0,0.0001452,2]
[323195154,1713797485383,-500.0,0.0001452,2]
[323195155,1713797485606,-722.9,0.0001452,2]
[323195156,1713797485623,-500.0,0.0001452,2]
[323195157,1713797485633,-2661.64,0.0001452,2]
[323195158,1713797485643,-500.0,0.0001452,2]
[323195159,1713797485653,-2137.6,0.0001452,2]
[323195160,1713797485664,-500.0,0.0001452,2]
[323195161,1713797485673,-151.0,0.0001452,2]
[323195162,1713797485683,-500.0,0.0001452,2]
[323195163,1713797485692,-500.0,0.0001452,2]
[323195164,1713797485702,-500.0,0.0001452,2]
[323195165,1713797485711,-500.0,0.0001452,2]
[323195166,1713797485720,-500.0,0.0001452,2]
[323195167,1713797485730,-2786.13,0.0001452,2]
[323195168,1713797485739,-4533.07,0.0001452,2]
[323195169,1713797485749,-14256.45,0.0001452,2]
[323195170,1713797485758,-500.0,0.0001452,2]
[323195171,1713797485767,-500.0,0.0001452,2]
[323195172,1713797485777,-5081.1,0.0001452,2]
[323195173,1713797485787,-2003.06,0.0001452,2]
[323195174,1713797485796,-500.0,0.0001452,2]
[323195175,1713797485806,-500.0,0.0001452,2]
[323195176,1713797485815,-2440.14,0.0001452,2]
[323195177,1713797485826,-500.0,0.0001452,2]
[323195178,1713797485836,-15461.58,0.0001452,2]
[323195179,1713797485845,-1819.4,0.0001452,2]
[323195180,1713797485855,-500.0,0.0001452,2]
[323195181,1713797485864,-500.0,0.0001452,2]
[323195182,1713797485873,-8191.28,0.0001452,2]
[323195183,1713797485883,-500.0,0.0001452,2]
[323195184,1713797485893,-1932.99,0.0001452,2]
[323195185,1713797485902,-500.0,0.0001452,2]
[323195186,1713797485912,-12934.42,0.0001452,2]
[323195187,1713797485921,-500.0,0.0001452,2]
[323195188,1713797485931,-556.84,0.0001452,2]
[323195189,1713797485941,-3301.45,0.0001452,2]
[323195190,1713797485950,-879.25,0.0001452,2]
[323195191,1713797485961,-500.0,0.0001452,2]